fUST/lending_fUST_20250803
["ID","MTS","AMOUNT","RATE_DAILY","PERIOD"]
[377038548,1754217044775,-1000.0,0.00039,120]
[377038549,1754217044787,-8000.0,0.00039,30]
[377038550,1754217044800,-92365.47197952,0.00039,30]
[377038555,1754217044882,-318.99278311,0.00027945,10]
[377038557,1754217044893,-6200.71780541,0.00039,30]
[377038559,1754217044905,-4331.66811451,0.00039,30]
[377038561,1754217044917,-7251.85444772,0.00039,30]
[377038568,1754217044993,-460.0,0.00027945,10]
[377038570,1754217045004,-460.0,0.00027945,10]
[377038572,1754217045019,-460.0,0.00027945,10]
[377038574,1754217045030,-460.0,0.00027945,10]
[377038576,1754217045041,-460.0,0.00027945,10]
[377038578,1754217045053,-460.0,0.00027945,10]
[377038581,1754217045065,-460.0,0.00027945,10]
[377038583,1754217045077,-460.0,0.00027945,10]
[377038585,1754217045089,-460.0,0.00027945,10]
[377038587,1754217045099,-1908.24441651,0.00039,30]
[377041642,1754217077658,172.69,0.00022637,2]
[377042409,1754217093096,200.0,0.00027783,120]
[377042410,1754217150772,200.0,0.00030079,120]
[377042411,1754217181273,151.0,0.00024,120]
[377042412,1754217182594,151.0,0.000253,120]
[377042413,1754217183975,151.0,0.000267,120]
[377042414,1754217185370,151.0,0.00028,120]
[377042415,1754217186738,151.0,0.000294,120]
[377042416,1754217270800,200.0,0.00030119,120]
[377042417,1754217298494,177.0,0.00021726,5]
[377042419,1754217333084,2999.999999,0.0003013,120]
[377042420,1754217399382,689.78990495,0.00028294,30]
[377042421,1754217414849,151.0,0.00024,120]
[377042422,1754217416235,151.0,0.000254,120]
[377042423,1754217417614,151.0,0.000267,120]
[377042424,1754217419006,151.0,0.000281,120]
[377042425,1754217420380,151.0,0.000295,120]
[377042450,1754217631342,200.0,0.00029035,120]
[377042451,1754217948139,-1713.64374523,0.0002469,2]
[377042453,1754218019090,-151.0,0.0002469,2]
[377042454,1754218019114,-30.6855286,0.0002469,2]
[377042455,1754218075404,164.573909,0.00013699,2]
[377042456,1754218075617,164.573909,0.00020187,2]
[377042458,1754218154923,150.09,0.00022372,2]
[377042497,1754218231814,-177.389451,0.00024706,2]
[377042499,1754218231824,-90.88586993,0.00024833,2]
[377042519,1754218232020,-909.11413007,0.00024833,2]
[377042522,1754218232030,-150.0,0.00024939,2]
[377042524,1754218232039,-167.178075,0.00025013,2]
[377042526,1754218232049,-160.0,0.00025869,2]
[377042528,1754218232058,-772.09889348,0.000259,14]
[377042647,1754218237719,-1108.75874061,0.000259,14]
[377042649,1754218237730,-232.72882287,0.00025913,2]
[377042651,1754218237740,-300.0,0.00025972,2]
[377042653,1754218237749,-261.59570412,0.00025973,2]
[377042655,1754218237759,-500.0,0.00025973,2]
[377042657,1754218237768,-500.0,0.00025973,2]
[377042659,1754218237778,-608.49658072,0.00025973,2]
[377042661,1754218237787,-509.3110749,0.00025973,2]
[377042663,1754218237796,-500.0,0.00025973,2]
[377042677,1754218237926,-501.1736456,0.00025973,2]
[377042679,1754218237940,-164.75563585,0.00025991,10]
[377042853,1754218239985,-35.24436415,0.00025991,10]
[377042854,1754218239996,-200.0,0.00025991,10]
[377042856,1754218240006,-247.078909,0.00025991,10]
[377042858,1754218240015,-500.0,0.00025997,2]
[377042860,1754218240025,-500.0,0.00026271,2]
[377042862,1754218240034,-1000.0,0.00026521,2]
[377042864,1754218240044,-500.0,0.00026545,2]
[377042866,1754218240054,-164.05651515,0.00026676,2]
[377042869,1754218240067,-0.51739385,0.00026676,2]
[377042871,1754218240076,-500.01345688,0.00026819,2]
[377042873,1754218240085,-231.62108626,0.00026832,2]
[377042875,1754218240095,-160.0,0.00026832,2]
[377042877,1754218240104,-1566.71,0.00026839,2]
[377042879,1754218240113,-5961.09837737,0.0002684,2]
[377042881,1754218240122,-160.0,0.0002685,2]
[377042883,1754218240132,-841.87402298,0.0002685,2]
[377042885,1754218240141,-160.0,0.0002685,2]
[377042887,1754218240150,-527.12062288,0.0002685,2]
[377042889,1754218240160,-460.95174316,0.0002685,2]
[377042891,1754218240170,-216.32054205,0.0002685,2]
[377042893,1754218240179,-200.0,0.0002727,15]
[377042895,1754218240188,-300.0,0.0002727,15]
[377042897,1754218240197,-263.81,0.00027819,2]
[377042899,1754218240207,-398.89,0.00027831,3]
[377042901,1754218240217,-199.44,0.00027831,3]
[377042903,1754218240226,-598.35,0.00027831,3]
[377042904,1754218240236,-30000.0,0.00027841,2]
[377042906,1754218240246,-637.01510644,0.00027845,2]
[377042908,1754218240255,-408.64105568,0.00027873,5]
[377042910,1754218240265,-500.0,0.00027873,5]
[377042912,1754218240274,-500.0,0.00027873,5]
[377042914,1754218240283,-500.0,0.00027873,5]
[377042916,1754218240293,-500.0,0.00027873,5]
[377042918,1754218240303,-500.0,0.00027873,5]
[377042921,1754218240312,-445.16114975,0.00027873,3]
[377042922,1754218240322,-500.0,0.00027873,5]
[377042924,1754218240331,-500.0,0.00027873,5]
[377042926,1754218240340,-524.22600737,0.00027873,5]
[377042928,1754218240350,-500.0,0.00027873,5]
[377042930,1754218240360,-464.95,0.000279,7]
[377042932,1754218240370,-8358.33281165,0.00027935,2]
[377042935,1754218240381,-974.32087124,0.00027935,2]
[377043146,1754218242800,-927.55895766,0.00025989,2]
[377043148,1754218242809,-927.55895766,0.00025989,2]
[377043151,1754218242819,-927.55895766,0.00025989,2]
[377043153,1754218242828,-254.7587074,0.00025989,2]
[377043155,1754218242839,-672.80025026,0.00025989,2]
[377043157,1754218242849,-927.55895766,0.00025989,2]
[377043159,1754218242858,-927.55895766,0.00025989,2]
[377043161,1754218242867,-927.55895766,0.00025989,2]
[377043163,1754218242877,-927.55895766,0.00025989,2]
[377043165,1754218242886,-927.55895766,0.00025989,2]
[377043167,1754218242896,-927.55895766,0.00025989,2]
[377043169,1754218242906,-927.55895766,0.00025989,2]
[377043172,1754218242915,-927.55895766,0.00025989,2]
[377043175,1754218242925,-556.09165489,0.00025989,2]
[377048295,1754218398837,5000.0,0.0003013,120]
[377048296,1754218432321,3689.2095233,0.00028288,120]
[377048301,1754219016443,157.772016,0.00013699,2]
[377048302,1754219016628,157.772016,0.00020187,2]
[377048303,1754219058571,-165.41727727,0.00023128,2]
[377048304,1754219155168,-972.02,0.00023077,2]
[377048305,1754219155188,-157.84267822,0.00024783,2]
[377048306,1754219155208,-383.12623173,0.00024883,2]
[377048307,1754219155229,-159.53035683,0.00024883,2]
[377048308,1754219197096,-184.77467149,0.00024626,2]
[377048309,1754219316396,293.0,0.00030137,120]
[377048375,1754219432232,-2274.00699777,0.0002438,2]
[377048376,1754219432241,-167.178075,0.00024596,2]
[377048379,1754219432253,-678.33294828,0.00024626,2]
[377048409,1754219438156,-136.89238023,0.00024626,2]
[377048411,1754219438166,-25.58755276,0.00024883,2]
[377048412,1754219438176,-472.32,0.00025,30]
[377048414,1754219438189,-177.389451,0.00025135,2]
[377048416,1754219438198,-1946.17613027,0.000259,14]
[377048417,1754219438207,-407.53732424,0.00025973,2]
[377048418,1754219438217,-238.40429588,0.00025973,2]
[377048419,1754219438228,-300.0,0.00025979,2]
[377048420,1754219438237,-656.62681677,0.00025979,2]
[377048421,1754219438247,-656.62681677,0.00025979,2]
[377048422,1754219438256,-656.62681677,0.00025979,2]
[377048423,1754219438267,-656.62681677,0.00025979,2]
[377048424,1754219438276,-656.62681677,0.00025979,2]
[377048425,1754219438286,-656.62681677,0.00025979,2]
[377048426,1754219438295,-656.62681677,0.00025979,2]
[377048427,1754219438304,-656.62681677,0.00025979,2]
[377048428,1754219438313,-656.62681677,0.00025979,2]
[377048429,1754219438322,-656.62681677,0.00025979,2]
[377048430,1754219438331,-656.62681677,0.00025979,2]
[377048431,1754219438340,-656.62681677,0.00025979,2]
[377048432,1754219438350,-656.62681677,0.00025979,2]
[377048433,1754219438359,-656.62681677,0.00025979,2]
[377048434,1754219438369,-656.62681677,0.00025979,2]
[377048435,1754219438378,-656.62681677,0.00025979,2]
[377048436,1754219438387,-656.62681677,0.00025979,2]
[377048437,1754219438396,-656.62681677,0.00025979,2]
[377048438,1754219438406,-656.62681677,0.00025979,2]
[377048439,1754219438415,-656.62681677,0.00025979,2]
[377048440,1754219438424,-656.62681677,0.00025979,2]
[377048441,1754219438434,-656.62681677,0.00025979,2]
[377048442,1754219438443,-656.62681677,0.00025979,2]
[377048443,1754219438453,-656.62681677,0.00025979,2]
[377048444,1754219438462,-656.62681677,0.00025979,2]
[377048445,1754219438471,-656.62681677,0.00025979,2]
[377048446,1754219438480,-656.62681677,0.00025979,2]
[377048447,1754219438490,-656.62681677,0.00025979,2]
[377048448,1754219438499,-656.62681677,0.00025979,2]
[377048449,1754219438507,-656.62681677,0.00025979,2]
[377048450,1754219438516,-656.62681677,0.00025979,2]
[377048451,1754219438525,-656.62681677,0.00025979,2]
[377048452,1754219438535,-656.62681677,0.00025979,2]
[377048453,1754219438544,-656.62681677,0.00025979,2]
[377048454,1754219438553,-656.62681677,0.00025979,2]
[377048455,1754219438563,-656.62681677,0.00025979,2]
[377048456,1754219438572,-656.62681677,0.00025979,2]
[377048457,1754219438582,-656.62681677,0.00025979,2]
[377048458,1754219438592,-656.62681677,0.00025979,2]
[377048459,1754219438602,-656.62681677,0.00025979,2]
[377048460,1754219438611,-656.62681677,0.00025979,2]
[377048461,1754219438621,-656.62681677,0.00025979,2]
[377048462,1754219438630,-656.62681677,0.00025979,2]
[377048464,1754219438640,-656.62681677,0.00025979,2]
[377048466,1754219438650,-656.62681677,0.00025979,2]
[377048468,1754219438659,-656.62681677,0.00025979,2]
[377048470,1754219438668,-656.62681677,0.00025979,2]
[377048472,1754219438678,-656.62681677,0.00025979,2]
[377048473,1754219438687,-656.62681677,0.00025979,2]
[377048474,1754219438696,-656.62681677,0.00025979,2]
[377048476,1754219438705,-656.62681677,0.00025979,2]
[377048478,1754219438719,-656.62681677,0.00025979,2]
[377048479,1754219438728,-656.62681677,0.00025979,2]
[377048480,1754219438741,-656.62681677,0.00025979,2]
[377048481,1754219438750,-200.0,0.00025981,10]
[377048482,1754219438759,-200.0,0.00025981,10]
[377048483,1754219438769,-200.0,0.00025981,10]
[377048484,1754219438777,-502.694,0.00026057,2]
[377048485,1754219438787,-157.772016,0.00026676,2]
[377048486,1754219438797,-231.62108626,0.00026832,2]
[377048487,1754219438806,-200.0,0.00027278,15]
[377048488,1754219438815,-300.0,0.00027278,15]
[377048489,1754219438824,-509.61208512,0.00027845,2]
[377048490,1754219438836,-1501.43,0.00027934,2]
[377048491,1754219438846,-665.85209004,0.00027935,2]
[377048492,1754219438856,-41571.2861949,0.00027935,2]
[377048493,1754219438865,-289.46292581,0.00027935,2]
[377048494,1754219438875,-199.44,0.00027935,3]
[377048495,1754219438884,-598.34,0.00027935,3]
[377048496,1754219438894,-259.64,0.00027938,2]
[377048497,1754219438903,-460.0,0.00027945,10]
[377048498,1754219438913,-522.90711099,0.00027945,10]
[377048499,1754219438922,-463.18129463,0.00027945,10]
[377048500,1754219438931,-460.0,0.00027945,10]
[377048501,1754219438940,-517.83864484,0.00027945,10]
[377048502,1754219438953,-460.0,0.00027945,10]
[377048503,1754219438963,-460.0,0.00027945,10]
[377048504,1754219438972,-461.76160074,0.00027945,10]
[377048505,1754219438982,-460.68805506,0.00027945,10]
[377048506,1754219438991,-272.09540538,0.00027945,10]
[377048507,1754219439001,-460.0,0.00027945,2]
[377048508,1754219439010,-461.75821231,0.00027945,10]
[377048509,1754219439020,-460.0,0.00027945,10]
[377048510,1754219439030,-460.0,0.00027945,10]
[377048511,1754219439039,-151.71875,0.00027945,7]
[377048512,1754219439048,-151.0,0.00027945,7]
[377048513,1754219439057,-477.99493802,0.00027945,10]
[377048514,1754219439066,-460.0,0.00027945,10]
[377048515,1754219439075,-460.0,0.00027945,10]
[377048516,1754219439086,-460.0,0.00027945,10]
[377048517,1754219439096,-460.0,0.00027945,10]
[377048518,1754219439105,-460.0,0.00027945,10]
[377048519,1754219439114,-152.196196,0.00027945,7]
[377048520,1754219439123,-462.77438072,0.00027945,10]
[377048521,1754219439133,-464.14821382,0.00027945,10]
[377048522,1754219439143,-460.0,0.00027945,10]
[377048523,1754219439153,-469.82383524,0.00027945,10]
[377048524,1754219439163,-1009.76781044,0.00027945,10]
[377048525,1754219439172,-500.0,0.00027945,10]
[377048526,1754219439183,-500.0,0.00027945,10]
[377048527,1754219439192,-500.0,0.00027945,10]
[377048528,1754219439201,-460.0,0.00027945,10]
[377048529,1754219439211,-460.0,0.00027945,10]
[377048530,1754219439220,-460.0,0.00027945,10]
[377048531,1754219439231,-460.0,0.00027945,10]
[377048532,1754219439240,-460.0,0.00027945,10]
[377048533,1754219439250,-460.0,0.00027945,10]
[377048534,1754219439259,-462.67723983,0.00027945,10]
[377048535,1754219439269,-460.0,0.00027945,10]
[377048536,1754219439288,-460.0,0.00027945,10]
[377048537,1754219439298,-460.0,0.00027945,10]
[377048538,1754219439309,-460.0,0.00027945,10]
[377048539,1754219439319,-460.0,0.00027945,10]
[377048540,1754219439328,-460.0,0.00027945,10]
[377048541,1754219439338,-460.0,0.00027945,10]
[377048542,1754219439348,-460.0,0.00027945,10]
[377048543,1754219439357,-460.0,0.00027945,10]
[377048544,1754219439368,-460.0,0.00027945,10]
[377048545,1754219439377,-151.0,0.00027945,7]
[377048546,1754219439387,-460.0,0.00027945,10]
[377048547,1754219439397,-460.0,0.00027945,10]
[377048548,1754219439407,-460.0,0.00027945,10]
[377048549,1754219439417,-460.0,0.00027945,10]
[377048550,1754219439426,-460.0,0.00027945,10]
[377048551,1754219439436,-569.86,0.00027945,10]
[377048552,1754219439446,-460.0,0.00027945,10]
[377048553,1754219439455,-151.0,0.00027945,7]
[377048554,1754219439465,-153.587101,0.00027945,7]
[377048555,1754219439474,-460.0,0.00027945,10]
[377048556,1754219439484,-462.63058886,0.00027945,10]
[377048557,1754219439493,-151.0,0.00027945,7]
[377048558,1754219439505,-460.0,0.00027945,10]
[377048559,1754219439515,-460.0,0.00027945,10]
[377048560,1754219439524,-460.0,0.00027945,10]
[377048561,1754219439534,-460.0,0.00027945,10]
[377048562,1754219439544,-460.0,0.00027945,10]
[377048563,1754219439555,-460.0,0.00027945,10]
[377048564,1754219439567,-460.0,0.00027945,10]
[377048565,1754219439576,-466.0683641,0.00027945,10]
[377048566,1754219439586,-460.0,0.00027945,10]
[377048567,1754219439597,-460.0,0.00027945,10]
[377048568,1754219439606,-474.06420217,0.00027945,10]
[377048569,1754219439741,-460.0,0.00027945,10]
[377048570,1754219439751,-460.0,0.00027945,10]
[377048571,1754219439761,-460.0,0.00027945,10]
[377048572,1754219439770,-460.0,0.00027945,10]
[377048573,1754219439780,-460.0,0.00027945,10]
[377048574,1754219439789,-460.0,0.00027945,10]
[377048575,1754219439799,-460.0,0.00027945,10]
[377048576,1754219439808,-460.0,0.00027945,10]
[377048577,1754219439817,-460.0,0.00027945,10]
[377048578,1754219439827,-417.14587913,0.00027945,10]
[377048580,1754219439836,-460.0,0.00027945,10]
[377048582,1754219439846,-460.0,0.00027945,10]
[377048584,1754219439855,-460.0,0.00027945,10]
[377048586,1754219439865,-460.0,0.00027945,10]
[377048588,1754219439875,-460.0,0.00027945,10]
[377048589,1754219439884,-460.0,0.00027945,10]
[377048591,1754219439894,-463.00753659,0.00027945,10]
[377048593,1754219439904,-151.0,0.00027945,7]
[377048594,1754219439914,-460.0,0.00027945,10]
[377048595,1754219439924,-460.0,0.00027945,10]
[377048596,1754219439934,-591.47715429,0.00027945,10]
[377048597,1754219439943,-460.0,0.00027945,10]
[377048598,1754219439952,-278.7242481,0.00027945,10]
[377048599,1754219439962,-460.0,0.00027945,10]
[377048600,1754219439971,-460.0,0.00027945,10]
[377048601,1754219439981,-460.0,0.00027945,10]
[377048602,1754219439990,-460.0,0.00027945,10]
[377048603,1754219439999,-460.0,0.00027945,10]
[377048604,1754219440009,-460.0,0.00027945,10]
[377048605,1754219440018,-460.0,0.00027945,10]
[377048606,1754219440027,-464.46800842,0.00027945,10]
[377048607,1754219440036,-460.0,0.00027945,10]
[377048608,1754219440046,-464.81190026,0.00027945,10]
[377048609,1754219440055,-460.0,0.00027945,10]
[377048610,1754219440065,-460.0,0.00027945,10]
[377048611,1754219440074,-311.48568147,0.00027945,10]
[377048612,1754219440084,-465.16657325,0.00027945,10]
[377048613,1754219440093,-461.31730079,0.00027945,10]
[377048615,1754219440102,-381.46133845,0.00027945,10]
[377048617,1754219440112,-465.5625983,0.00027945,10]
[377048619,1754219440121,-460.0,0.00027945,10]
[377048621,1754219440130,-460.0,0.00027945,10]
[377048623,1754219440140,-309.67265234,0.00027945,10]
[377048625,1754219440151,-460.98171453,0.00027945,10]
[377048627,1754219440160,-463.49832866,0.00027945,10]
[377048629,1754219440169,-462.52202051,0.00027945,10]
[377048631,1754219440179,-460.0,0.00027945,10]
[377048633,1754219440191,-460.0,0.00027945,10]
[377048635,1754219440200,-460.0,0.00027945,10]
[377048637,1754219440210,-460.0,0.00027945,10]
[377048639,1754219440219,-460.0,0.00027945,10]
[377048641,1754219440230,-460.0,0.00027945,10]
[377048643,1754219440240,-460.0,0.00027945,10]
[377048645,1754219440249,-460.0,0.00027945,10]
[377048647,1754219440259,-460.0,0.00027945,10]
[377048649,1754219440268,-460.0,0.00027945,10]
[377048651,1754219440277,-460.0,0.00027945,10]
[377048653,1754219440287,-460.0,0.00027945,10]
[377048655,1754219440296,-220.12,0.00027945,10]
[377048657,1754219440306,-460.0,0.00027945,10]
[377048659,1754219440315,-151.0,0.00027945,7]
[377048661,1754219440324,-460.0,0.00027945,10]
[377048663,1754219440333,-151.0,0.00027945,7]
[377048665,1754219440342,-460.0,0.00027945,10]
[377048667,1754219440352,-460.35485264,0.00027945,10]
[377048670,1754219440362,-151.0,0.00027945,7]
[377048671,1754219440371,-151.0,0.00027945,7]
[377048673,1754219440380,-460.0,0.00027945,10]
[377048675,1754219440390,-502.60673499,0.00027945,2]
[377048677,1754219440400,-460.13736852,0.00027945,10]
[377048678,1754219440410,-460.0,0.00027945,10]
[377048681,1754219440420,-460.0,0.00027945,10]
[377048682,1754219440429,-468.25889984,0.00027945,10]
[377048684,1754219440438,-460.0,0.00027945,10]
[377048686,1754219440448,-460.0,0.00027945,10]
[377048688,1754219440458,-460.0,0.00027945,10]
[377048690,1754219440467,-460.0,0.00027945,10]
[377048692,1754219440477,-460.0,0.00027945,10]
[377048694,1754219440486,-460.0,0.00027945,10]
[377048696,1754219440496,-463.20217995,0.00027945,10]
[377048699,1754219440507,-463.76513808,0.00027945,10]
[377048701,1754219440516,-460.0,0.00027945,10]
[377048702,1754219440526,-460.0,0.00027945,10]
[377048704,1754219440536,-460.0,0.00027945,10]
[377048706,1754219440545,-460.0,0.00027945,10]
[377048708,1754219440554,-461.8412065,0.00027945,10]
[377048710,1754219440564,-460.0,0.00027945,10]
[377048712,1754219440573,-460.0,0.00027945,10]
[377048714,1754219440582,-460.0,0.00027945,10]
[377048716,1754219440593,-486.05589808,0.00027945,10]
[377048718,1754219440602,-1003.00627739,0.00027945,10]
[377048720,1754219440611,-460.0,0.00027945,10]
[377048722,1754219440620,-460.0,0.00027945,10]
[377048723,1754219440629,-464.85211838,0.00027945,10]
[377048724,1754219440639,-151.0,0.00027945,7]
[377048725,1754219440648,-151.0,0.00027945,7]
[377048726,1754219440657,-151.0,0.00027945,7]
[377048727,1754219440666,-460.94474261,0.00027945,10]
[377048728,1754219440675,-460.0,0.00027945,10]
[377048729,1754219440684,-460.0,0.00027945,10]
[377048730,1754219440693,-467.31895115,0.00027945,10]
[377048731,1754219440703,-462.96103993,0.00027945,10]
[377048732,1754219440713,-460.0,0.00027945,10]
[377048733,1754219440723,-460.0,0.00027945,10]
[377048734,1754219440731,-460.0,0.00027945,10]
[377048735,1754219440741,-460.0,0.00027945,10]
[377048736,1754219440750,-460.0,0.00027945,10]
[377048737,1754219440760,-460.0,0.00027945,10]
[377048738,1754219440769,-465.05175865,0.00027945,10]
[377048739,1754219440779,-460.0,0.00027945,10]
[377048740,1754219440788,-460.0,0.00027945,10]
[377048741,1754219440797,-460.0,0.00027945,10]
[377048742,1754219440807,-460.0,0.00027945,10]
[377048743,1754219440816,-460.0,0.00027945,10]
[377048744,1754219440826,-460.0,0.00027945,10]
[377048745,1754219440835,-460.0,0.00027945,10]
[377048746,1754219440844,-151.0,0.00027945,7]
[377048747,1754219440853,-151.0,0.00027945,7]
[377048748,1754219440862,-460.0,0.00027945,10]
[377048749,1754219440872,-460.0,0.00027945,10]
[377048750,1754219440881,-151.0,0.00027945,7]
[377048751,1754219440891,-460.0,0.00027945,10]
[377048752,1754219440900,-460.0,0.00027945,10]
[377048753,1754219440911,-460.0,0.00027945,10]
[377048754,1754219440921,-460.0,0.00027945,10]
[377048755,1754219440930,-563.7824126,0.00027945,10]
[377048756,1754219440940,-460.0,0.00027945,10]
[377048757,1754219440949,-151.0,0.00027945,7]
[377048758,1754219440959,-151.0,0.00027945,7]
[377048759,1754219440969,-460.0,0.00027945,10]
[377048760,1754219440978,-151.0,0.00027945,7]
[377048761,1754219440988,-460.0,0.00027945,10]
[377048762,1754219440997,-460.0,0.00027945,10]
[377048763,1754219441006,-460.0,0.00027945,10]
[377048764,1754219441016,-460.0,0.00027945,10]
[377048765,1754219441025,-460.0,0.00027945,10]
[377048766,1754219441034,-460.0,0.00027945,10]
[377048767,1754219441043,-460.0,0.00027945,10]
[377048768,1754219441053,-460.0,0.00027945,10]
[377048769,1754219441062,-460.0,0.00027945,10]
[377048770,1754219441072,-460.0,0.00027945,10]
[377048771,1754219441082,-460.0,0.00027945,10]
[377048772,1754219441091,-151.0,0.00027945,7]
[377048773,1754219441100,-151.0,0.00027945,7]
[377048774,1754219441110,-463.92860438,0.00027945,10]
[377048775,1754219441120,-460.0,0.00027945,10]
[377048776,1754219441130,-460.0,0.00027945,10]
[377048777,1754219441139,-460.0,0.00027945,10]
[377048778,1754219441148,-460.0,0.00027945,10]
[377048779,1754219441157,-460.0,0.00027945,10]
[377048780,1754219441166,-460.0,0.00027945,10]
[377048781,1754219441175,-460.0,0.00027945,10]
[377048782,1754219441187,-460.0,0.00027945,10]
[377048783,1754219441197,-462.35366905,0.00027945,10]
[377048784,1754219441206,-461.713866,0.00027945,10]
[377048785,1754219441215,-464.46546797,0.00027945,10]
[377048786,1754219441224,-460.0,0.00027945,10]
[377048787,1754219441233,-602.26893103,0.00027945,10]
[377048788,1754219441243,-460.0,0.00027945,10]
[377048789,1754219441252,-460.0,0.00027945,10]
[377048790,1754219441262,-462.86030812,0.00027945,10]
[377048791,1754219441271,-460.0,0.00027945,10]
[377048792,1754219441281,-460.0,0.00027945,10]
[377048793,1754219441290,-460.0,0.00027945,10]
[377048794,1754219441299,-462.17514279,0.00027945,10]
[377048795,1754219441309,-460.0,0.00027945,10]
[377048796,1754219441319,-460.0,0.00027945,10]
[377048797,1754219441328,-460.0,0.00027945,10]
[377048798,1754219441337,-343.80118225,0.00027945,10]
[377048799,1754219441347,-500.0,0.00027945,10]
[377048800,1754219441356,-500.0,0.00027945,10]
[377048801,1754219441365,-500.0,0.00027945,10]
[377048802,1754219441376,-460.0,0.00027945,10]
[377048803,1754219441385,-500.0,0.00027945,10]
[377048804,1754219441396,-152.537099,0.00027945,7]
[377048805,1754219441406,-460.0,0.00027945,10]
[377048806,1754219441415,-460.0,0.00027945,10]
[377048807,1754219441424,-151.0,0.00027945,7]
[377048808,1754219441433,-151.0,0.00027945,7]
[377048809,1754219441442,-151.0,0.00027945,7]
[377048810,1754219441451,-460.0,0.00027945,10]
[377048811,1754219441461,-460.0,0.00027945,10]
[377048812,1754219441470,-460.0,0.00027945,10]
[377048813,1754219441479,-460.0,0.00027945,10]
[377048814,1754219441488,-460.0,0.00027945,10]
[377048815,1754219441498,-460.0,0.00027945,10]
[377048816,1754219441507,-460.0,0.00027945,10]
[377048817,1754219441516,-460.0,0.00027945,10]
[377048818,1754219441526,-460.0,0.00027945,10]
[377048819,1754219441535,-500.0,0.00027945,10]
[377048820,1754219441545,-500.0,0.00027945,10]
[377048821,1754219441554,-460.0,0.00027945,10]
[377048822,1754219441564,-500.0,0.00027945,10]
[377048823,1754219441573,-460.0,0.00027945,10]
[377048824,1754219441582,-500.0,0.00027945,10]
[377048825,1754219441591,-500.0,0.00027945,10]
[377048826,1754219441601,-500.0,0.00027945,10]
[377048827,1754219441611,-500.0,0.00027945,10]
[377048828,1754219441620,-455.02731498,0.00027945,10]
[377048829,1754219441630,-460.0,0.00027945,10]
[377048830,1754219441639,-460.0,0.00027945,10]
[377048831,1754219441649,-463.23394632,0.00027945,10]
[377048832,1754219441658,-460.0,0.00027945,10]
[377048833,1754219441667,-460.0,0.00027945,10]
[377048834,1754219441678,-460.0,0.00027945,10]
[377048835,1754219441687,-460.0,0.00027945,10]
[377048836,1754219441697,-460.0,0.00027945,10]
[377048837,1754219441707,-460.0,0.00027945,10]
[377048838,1754219441717,-460.0,0.00027945,10]
[377048839,1754219441726,-460.0,0.00027945,10]
[377048840,1754219441736,-460.0,0.00027945,10]
[377048841,1754219441745,-269.022027,0.00027945,7]
[377048842,1754219441754,-460.0,0.00027945,10]
[377048843,1754219441764,-489.30773794,0.00027945,10]
[377048844,1754219441773,-460.0,0.00027945,10]
[377048845,1754219441783,-462.14480825,0.00027945,10]
[377048846,1754219441792,-460.0,0.00027945,10]
[377048847,1754219441801,-536.66007141,0.00027945,10]
[377048848,1754219441811,-151.0,0.00027945,7]
[377048849,1754219441820,-460.0,0.00027945,10]
[377048850,1754219441829,-460.0,0.00027945,10]